Cogmind - Beta 15 @@@ ROGUE MODE // 2025.07.12 @ 02:31:01 Player: roc Result: Self-destructed Performance ------------- Evolutions (0) 0 Regions Visited (4) 800 Robots Destroyed (36) 180 Value Destroyed (500) 500 Prototype IDs (23) 460 Alien Tech Used (0) 0 Bonus (300) 300 TOTAL SCORE: 2240 Bonus ------- Aligned with FarCom 300 Cogmind --------- Core Integrity 205/250 Matter 300/300 Energy 250/250 System Corruption 0% Temperature Cool (0) Movement Rolling (230) Ox10 Location -9/Mines Parts ------- > --- POWER (1) -------- Ion Engine > --- PROPULSION (2) --- Wheel Wheel > --- UTILITY (2) ------ Humpback > --- WEAPON (2) ------- Medium Laser Assault Rifle > --- INVENTORY (35) --- Ion Engine Light Ion Engine Reinforced Deuterium Engine Fission Core Fission Core Light Treads Light Treads Wheel Small Storage Unit Humpback High-capacity Matter Pod (200) Structural Scanner Sensor Array Seismic Detector Light Armor Plating AWS/Thermal Grenade Launcher Rocket Launcher Peak State ------------ > --- POWER ------------ Ion Engine > --- PROPULSION ------- Light Treads Wheel > --- UTILITY ---------- Humpback > --- WEAPON ----------- Medium Laser Assault Rifle > --- INVENTORY -------- Ion Engine Reinforced Deuterium Engine Fission Core Fission Core Light Treads Small Storage Unit Humpback High-capacity Matter Pod Structural Scanner Sensor Array Seismic Detector Light Armor Plating AWS/Thermal Grenade Launcher Rocket Launcher [Rating: 11] Favorites ----------- Power Ion Engine Engine Ion Engine Propulsion Light Treads Treads Light Treads Wheel Wheel Utility Small Storage Unit Storage Small Storage Unit Protection Light Armor Plating Weapon Assault Rifle Energy Gun Medium Laser Ballistic Gun Assault Rifle Launcher Grenade Launcher Build | -11 -10 -10 -10 -9 ------- Run | Yrd Mat Min Exi Min Slots Evolved . | . . . . . Power . | . . . . . Propulsion . | . . . . . Utility . | . . . . . Weapon . | . . . . . Parts Attached 16 | 6 6 2 1 1 Power 3 | 1 2 . . . Engine 3 | 1 2 . . . Core . | . . . . . Reactor . | . . . . . Propulsion 4 | 2 1 . . 1 Treads 2 | 2 . . . . Leg . | . . . . . Wheel 2 | . 1 . . 1 Hover . | . . . . . Flight . | . . . . . Utility 3 | 1 1 . 1 . Device . | . . . . . Storage 2 | 1 . . 1 . Processor . | . . . . . Hackware . | . . . . . Protection 1 | . 1 . . . Artifact . | . . . . . Weapon 6 | 2 2 2 . . Energy Gun 1 | . 1 . . . Energy Cannon . | . . . . . Ballistic Gun 4 | 2 1 1 . . Ballistic Cannon . | . . . . . Launcher 1 | . . 1 . . Special Weapon . | . . . . . Impact Weapon . | . . . . . Slashing Weapon . | . . . . . Piercing Weapon . | . . . . . Special Melee Weapon . | . . . . . Unidentified Prototypes . | . . . . . Parts Lost 2 | . 2 . . . Power . | . . . . . Propulsion . | . . . . . Utility . | . . . . . Weapon 2 | . 2 . . . Highest Loss Streak 2 | . 2 . . . To Critical Strikes . | . . . . . Average Backups 9 | 3 7 8 10 16 Power 1 | . 1 1 1 4 Propulsion 1 | 1 1 1 1 1 Utility 4 | . 3 4 6 7 Weapon 1 | . 1 1 2 3 Tool/Special . | . . . . . Unused Backups 14 | . 2 1 . 11 Power 3 | . . . . 3 Propulsion 2 | . 1 . . 1 Utility 7 | . 1 1 . 5 Weapon 2 | . . . . 2 Tool/Special . | . . . . . Average Slot Usage (%) 92 | . 95 100 89 85 Engine 14 | . 14 14 14 14 Treads 16 | . 21 14 14 7 Wheel 11 | . 5 14 14 20 Storage 14 | . 14 14 14 14 Protection 7 | . 10 14 3 . Energy Gun 9 | . 3 13 14 14 Ballistic Gun 18 | . 24 14 14 14 Peak Build Rating 11 | 6 7 7 11 11 Average Rating 7 | 5 6 7 8 11 On Entrance 6 | . 6 7 7 11 Naked Turns . | . . . . . Heaviest Build 209 | 14 17 17 209 209 Greatest Support 40 | 40 40 10 10 20 Greatest Overweight (x) 20 | . 1 1 20 20 Average Overweight (x) 3 | . . 1 8 14 Largest Inventory Capacity 35 | 8 8 8 35 35 Average Capacity 17 | 7 8 8 27 35 Most Carried 20 | 5 8 8 17 20 Average Carried 9 | 3 7 7 11 18 Final Capacity 35 | 8 8 8 35 35 Final Carried 20 | 5 8 8 17 20 Class Distribution -------------------- 64% | Mutant 35% | Hauler-Mutant Dominant Class ---------------- Mutant | -10/Materials Mutant | -10/Mines Hauler-Mutant | -10/Exiles Hauler-Mutant | -9/Mines Resources | -11 -10 -10 -10 -9 ----------- Run | Yrd Mat Min Exi Min Matter Collected 1084 | 380 566 90 . 48 Remotely . | . . . . . Salvage Created 1002 | 235 593 72 . 102 Parts 64 | 22 28 9 . 5 Haulers Intercepted 2 | . 2 . . . Recyclers Shooed 1 | . . . . 1 Parts Field Recycled . | . . . . . Retrieved Matter . | . . . . . Parts Self-Destructed . | . . . . . Prevented . | . . . . . Kills | -11 -10 -10 -10 -9 ------- Run | Yrd Mat Min Exi Min Combat Hostiles Destroyed 19 | . 15 4 . . Guns 17 | . 15 2 . . AOE 2 | . . 2 . . Classes Destroyed 7 | 3 4 . . . Worker 3 | 2 . . . 1 Tunneler 7 | 7 . . . . Hauler 2 | . 2 . . . Recycler 2 | 1 . . . 1 Watcher 3 | . 3 . . . Swarmer 12 | . 9 3 . . Grunt 7 | . 6 1 . . Best Kill Streak 4 | 4 3 3 . 1 Combat Bots Only 3 | . 3 3 . . Max Kills in Single Turn 2 | 1 1 2 . 1 Gunslinging . | . . . . . Exploded 2 | . . 2 . . Melee . | . . . . . Uniques/NPCs Destroyed . | . . . . . Combat | -11 -10 -10 -10 -9 -------- Run | Yrd Mat Min Exi Min Hostile Shots Fired 88 | . 83 5 . . Missed 23 | . 23 . . . Hits 65 | . 60 5 . . Projectile 65 | . 60 5 . . AOE 1 | . . 1 . . Damage Taken 660 | . 591 69 . . Core 45 | . 45 . . . Absorbed by Shields . | . . . . . Regen/Repaired (Parts) 94 | . 94 . . . Core Remaining (%) 100 | 100 . . . . Volleys Fired 93 | 20 63 4 . 6 Largest 2 | 2 2 2 . 2 Hottest 70 | 40 70 70 . 70 Shots Fired 185 | 40 126 7 . 12 Gun 184 | 40 126 6 . 12 Cannon . | . . . . . Launcher 1 | . . 1 . . Special . | . . . . . Kinetic 164 | 40 115 3 . 6 Thermal 20 | . 11 3 . 6 Explosive 1 | . . 1 . . Electromagnetic . | . . . . . Robot Hit Streak 12 | 5 10 12 . 9 Robot Miss Streak 5 | 5 3 . . 1 Penetration Max . | . . . . . Secondary Targets . | . . . . . Shots Hit Robots 121 | 22 85 5 . 9 Core Hits 46 | 11 28 4 . 3 Critical Kills . | . . . . . Critical Parts Destroyed 1 | 1 . . . . Critical Strikes 5 | 1 2 1 . 1 Burn 4 | . 2 1 . 1 Destroy 1 | 1 . . . . Melee Attacks . | . . . . . Impact . | . . . . . Slashing . | . . . . . Piercing . | . . . . . Sneak Attacks . | . . . . . Combat Hostiles . | . . . . . Follow-up Attacks . | . . . . . Damage Inflicted 1673 | 285 1072 206 . 110 Guns 1516 | 285 1071 50 . 110 Cannons . | . . . . . Explosions 156 | . . 156 . . Melee . | . . . . . Ramming 1 | . 1 . . . Kinetic 1316 | 285 971 12 . 48 Thermal 200 | . 100 38 . 62 Explosive 156 | . . 156 . . Electromagnetic . | . . . . . Impact . | . . . . . Slashing . | . . . . . Piercing . | . . . . . Highest Corruption . | . . . . . Average Corruption . | . . . . . Corruption Purged . | . . . . . Corruption Blocked . | . . . . . Overload Shots . | . . . . . Overflow Damage 6 | . . 6 . . Projectiles . | . . . . . Explosions 6 | . . 6 . . Melee . | . . . . . Knockbacks . | . . . . . Impact . | . . . . . Kinetic . | . . . . . Secondary . | . . . . . Self-Inflicted Damage 26 | . . 26 . . Shots 1 | . . 1 . . Rammed 3 | . 3 . . . Targets Rammed 3 | . 3 . . . Kicked . | . . . . . Crushed . | . . . . . Highest Temperature 108 | . 108 36 . 27 Average Temperature 22 | . 26 15 . 11 Received Heat Transfer 159 | . 159 . . . Siege Activations . | . . . . . Martial Activations . | . . . . . Shielding Activations . | . . . . . Robots Disrupted . | . . . . . Combat Hostiles . | . . . . . Robots Corrupted . | . . . . . Combat Hostiles . | . . . . . Parts Fried . | . . . . . Impact Corruptions . | . . . . . Robots Melted . | . . . . . Combat Hostiles . | . . . . . Parts Melted . | . . . . . Heat Transferred 888 | . 444 185 . 259 Parts Sabotaged . | . . . . . Parts Stolen . | . . . . . Parts Stripped . | . . . . . Power Chain Reactions . | . . . . . Alert | -11 -10 -10 -10 -9 ------- Run | Yrd Mat Min Exi Min Maximum Alert Level . | . . . . . Low Security (%) 100 | 100 100 100 . 100 Level 1 . | . . . . . Level 2 . | . . . . . Level 3 . | . . . . . Level 4 . | . . . . . Level 5 . | . . . . . High Security . | . . . . . Max Security . | . . . . . Peak Influence 179 | 20 179 117 . 5 Initial 37 | . . 37 . . Average 58 | 2 83 87 . . Influence Increases 703 | 50 533 110 . 10 Destroy 0b10 Robot/C 380 | . 300 80 . . Destroy 0b10 Robot/NC 85 | 50 25 . . 10 Destroy Leader 110 | . 90 20 . . Successful Hack 11 | . 11 . . . Select Force Hacks 60 | . 60 . . . Destroy Structure 12 | . 2 10 . . Lose Combat Pursuer 45 | . 45 . . . Influence Decreases 703 | 50 437 159 47 10 Entered New Map 106 | . . 59 47 . Time Decay 577 | 50 417 100 . 10 Lost Part 20 | . 20 . . . Squads Dispatched 4 | . 4 . . . Investigation 4 | . 4 . . . Extermination . | . . . . . Reinforcement . | . . . . . Assault . | . . . . . Garrison . | . . . . . Intercept . | . . . . . Searches Triggered . | . . . . . Construction Impeded . | . . . . . Haulers Reinforced . | . . . . . Active Scanning Responses . | . . . . . Cargo Convoy Interrupts . | . . . . . Stealth | -11 -10 -10 -10 -9 --------- Run | Yrd Mat Min Exi Min Distress Signals 1 | . 1 . . . Communications Jammed . | . . . . . Distress Signals . | . . . . . Times Spotted 31 | . 22 9 . . Peak Tracking Total 3 | . 3 3 . . Tactical Retreats 3 | . 3 . . . Traps | -11 -10 -10 -10 -9 ------- Run | Yrd Mat Min Exi Min Traps Triggered 3 | . 3 . . . Indirectly . | . . . . . Trap Hack Attempts . | . . . . . Triggered . | . . . . . Disarmed . | . . . . . Reprogrammed . | . . . . . Reused . | . . . . . Traps Extracted . | . . . . . Installed . | . . . . . Triggered . | . . . . . Machines | -11 -10 -10 -10 -9 ---------- Run | Yrd Mat Min Exi Min Machines Disabled . | . . . . . Max in Single Turn . | . . . . . Machines Repaired . | . . . . . Machines Dismantled . | . . . . . Machines Sabotaged . | . . . . . Overloaded Fab Kills . | . . . . . Hacking | -11 -10 -10 -10 -9 --------- Run | Yrd Mat Min Exi Min Machines Accessed 9 | . 8 . 1 . Terminals 5 | . 5 . . . Fabricators . | . . . . . Repair Stations 1 | . 1 . . . Recycling Units 2 | . 2 . . . Scanalyzers . | . . . . . Garrison Access . | . . . . . Total Hacks 23 | . 22 . 1 . Successful 18 | . 17 . 1 . Failed 5 | . 5 . . . Catastrophic . | . . . . . Database Lockouts . | . . . . . Manual 13 | . 12 . 1 . Terminals 13 | . 13 . . . Fabricators . | . . . . . Repair Stations 4 | . 4 . . . Recycling Units 5 | . 5 . . . Scanalyzers . | . . . . . Garrison Access . | . . . . . Terminal Hacks 4 | . 3 . 1 . Robot Analysis 1 | . 1 . . . Locate Traps 2 | . 2 . . . Proto ID Catalog 1 | . . . 1 . Fabricator Hacks . | . . . . . Repair Station Hacks 3 | . 3 . . . Scan Component 2 | . 2 . . . Repair 1 | . 1 . . . Recycling Unit Hacks 2 | . 2 . . . Report Inventory 2 | . 2 . . . Scanalyzer . | . . . . . Garrison Access Hacks . | . . . . . Unauthorized Hacks 9 | . 9 . . . Terminals 7 | . 7 . . . Botnet 1 | . 1 . . . Operators 1 | . 1 . . . Skim 5 | . 5 . . . Fabricators . | . . . . . Repair Stations . | . . . . . Recycling Units 2 | . 2 . . . Tunnel 2 | . 2 . . . Scanalyzers . | . . . . . Garrison Access . | . . . . . Data Cores Recovered . | . . . . . Used . | . . . . . Hacking Detections 6 | . 6 . . . Full Trace Events 1 | . 1 . . . Feedback Events . | . . . . . Feedback Blocked . | . . . . . Robot Schematics Acquired . | . . . . . Robots Built . | . . . . . Authchips . | . . . . . Time . | . . . . . Total Robot Build Rating . | . . . . . Part Schematics Acquired . | . . . . . Parts Built . | . . . . . Authchips . | . . . . . Time . | . . . . . Total Part Build Rating . | . . . . . Parts Repaired 1 | . 1 . . . Time 36 | . 36 . . . Parts Recycled . | . . . . . Recycled Matter . | . . . . . Retrieved Matter . | . . . . . Retrieved Components . | . . . . . Parts Scanalyzed . | . . . . . Part Schematics Acquired . | . . . . . Parts Damaged . | . . . . . Bothacking | -11 -10 -10 -10 -9 ------------ Run | Yrd Mat Min Exi Min Used RIF Installer . | . . . . . Robots Hacked . | . . . . . Non-combat . | . . . . . Combat . | . . . . . Robot Hacks Applied . | . . . . . Relay Couplers Released . | . . . . . Fabnet Peak Effective % . | . . . . . Robots Rewired . | . . . . . Allies Hacked . | . . . . . Hacks Repelled . | . . . . . Allies | -11 -10 -10 -10 -9 -------- Run | Yrd Mat Min Exi Min Total Allies . | . . . . . Largest Group . | . . . . . Highest-Rated Group . | . . . . . Highest-Rated Ally . | . . . . . Total Orders . | . . . . . Ally Attacks . | . . . . . Total Damage . | . . . . . Kills . | . . . . . Allies Corrupted . | . . . . . Allies Melted . | . . . . . Intel | -11 -10 -10 -10 -9 ------- Run | Yrd Mat Min Exi Min Active Infowar (turns) . | . . . . . Robot Analysis Total 1 | . 1 . . . Derelict Logs Recovered 1 | . . . . 1 Drone Launches . | . . . . . Drone Recoveries . | . . . . . Exploration | -11 -10 -10 -10 -9 ------------- Run | Yrd Mat Min Exi Min Turns Passed 3155 | 260 1303 205 988 399 Spaces Moved 1702 | 121 847 139 467 128 Core 6 | 6 . . . . Treads 493 | 115 378 . . . Legs . | . . . . . Wheels 1203 | . 469 139 467 128 Hover . | . . . . . Flight . | . . . . . Fastest Speed 50 | 50 95 95 80 230 Average Speed 159 | 154 124 95 209 292 Slowest Speed 380 | 160 160 95 380 380 Overloaded Moves . | . . . . . Propulsion Burnouts . | . . . . . Robots Hopped . | . . . . . Potential Cave-ins . | . . . . . Cave-ins Triggered . | . . . . . Exploration Rate (%) 49 | 8 99 46 67 29 Regions Visited 4 Branch Regions 3 Pre-discovered Areas 5 | . 3 . . 2 Known Exits Taken 1 | . . . 1 . Unknown Exits Taken 3 | 1 1 1 . . Scrap Searched 1 | . . 1 . . Spaces Dug . | . . . . . Terrain Destroyed 10 | . . 10 . . Melee . | . . . . . Projectile . | . . . . . AOE 10 | . . 10 . . Terrain Rammed . | . . . . . Walls Destroyed . | . . . . . Machines Disabled . | . . . . . Actions | -11 -10 -10 -10 -9 --------- Run | Yrd Mat Min Exi Min Total 1946 | 151 971 204 479 141 Wait 98 | . 39 56 . 3 Move 1698 | 120 846 138 466 128 Hop . | . . . . . Pick Up 25 | 5 7 1 10 2 Fast Attach 12 | 6 4 . 1 1 Attach 2 | . 2 . . . Detach 1 | . . . . 1 Swap 6 | . 3 3 . . Drop 8 | . 4 2 2 . Fire 93 | 20 63 4 . 6 Melee . | . . . . . Ram . | . . . . . Kick . | . . . . . Crush 3 | . 3 . . . Escape Stasis . | . . . . . Rewire . | . . . . . Trap . | . . . . . Miscellaneous . | . . . . . Route ------- -11/Scrapyard -10/Materials (discovered 5 exits: *Mat x3 / [*Min] / Sub) -10/Mines (discovered 3 exits: Mat x2 / *Exi) -10/Exiles (discovered 2 exits: *Min x2) -9/Mines History --------- Turn | Location | Event 57 | -11/Scrapyard | Discovered new exit (range 16) 261 | -11/Scrapyard | Entered Materials 300 | -10/Materials | Build established: Mutant 364 | -10/Materials | Discovered new exit (range 9) 678 | -10/Materials | Discovered new exit (range 15) 878 | -10/Materials | Discovered new exit (range 10) 914 | -10/Materials | Repaired Broken Lgt. Treads 957 | -10/Materials | Discovered new exit (range 15) 1055 | -10/Materials | Identified exit to Materials 1096 | -10/Materials | Identified exit to Subcaves 1096 | -10/Materials | Learned location of 2 exits from Materials 1128 | -10/Materials | Loaded intel: 11 trap records 1149 | -10/Materials | Learned 2 Materials zone layouts 1179 | -10/Materials | Learned Storage emergency access door positions 1564 | -10/Materials | Entered Mines 1565 | -10/Mines | Assembled infested the area 1586 | -10/Mines | Met 8R-AWN 1700 | -10/Mines | Received a Rocket Launcher from a helpful Derelict 1765 | -10/Mines | Discovered new exit (range 5) 1769 | -10/Mines | Entered Exiles 1770 | -10/Exiles | Identified exit to Mines 1795 | -10/Exiles | Welcomed by 8R-AWN 1808 | -10/Exiles | Met EX-HEX 1835 | -10/Exiles | Met EX-BIN 1848 | -10/Exiles | Aligned with FarCom system 1849 | -10/Exiles | Given EX-Vault access code 1872 | -10/Exiles | Opened EX-Vault 1903 | -10/Exiles | Warned to stay clear of 0b10 Research branches 1960 | -10/Exiles | Met EX-DEC 2339 | -10/Exiles | Found AWS/Thermal 2341 | -10/Exiles | Build established: Hauler-Mutant 2587 | -10/Exiles | Learned about 8R-AWN's background 2757 | -10/Exiles | Left Exiles lab with AWS/Thermal 2757 | -10/Exiles | Entered Mines 2758 | -9/Mines | Learned location of Storage (-9) 3156 | -9/Mines | Self-destructed Last Messages --------------- 02971_ Acquired Wheel. 02973_ Acquired 29 matter. 02977_ Acquired Wheel. 02978_ Extracted 10 matter. 02995_ Acquired Lgt. Ion Engine. 02996_ R-06 Scavenger suffers critical hit (Burn). 02999_ Destroyed Tractor Beam. 03002_ R-06 Scavenger destroyed. 03018_ Acquired 9 matter. 03042_ K-01 Serf cleans the Laser Drill. 03052_ K-01 Serf collects debris. 03070_ K-01 Serf cleans the Laser Drill. 03072_ T-07 Excavator is excavating. 03080_ U-05 Engineer lays Concrete. 03085_ U-05 Engineer builds a Wall. 03085_ T-07 Excavator is excavating. 03089_ U-05 Engineer builds a Wall. 03089_ T-07 Excavator is excavating. 03138_ Acquired derelict log, extracted data. World map confirmed: -9/Storage. Map ----- +----------------------------------------------------+ | | | | | | | | | ?????????????????????????????????????? | | ?????????????????????????????????????? | | ?????????????????????????????????????? | | ?????????????????????????????????????? | | ?????????????????????????????????????? | | ?????????????????????????????????????? | | ?????????????????????????????????????? | | ?????????????????????????????????????? | | ???????????????? ????????????????????? | | ??????????????? #????????????????????? | | ??????????????? #????????????????????? | | ??????????????? #????????????????????? | | ??????????????? #????????????????????? | | ???????#??????? #????????????????????? | | ???????# ???### #????????????????????? | | ???????# #?## ????????????????????? | | ??????## ## ?????????????????????? | | ??????# ?????????????????????? | | ??????# ??????????????????????? | | ???????# ??????????????????????? | | ????????# #??????????????????????? | | ??????????# @#??????????????????????? | | ??????????## #??????????????????????? | | ??????????## #??????????????????????? | | ??????????# #########??????????????? | | ??????????# #??????????????? | | ??????????## #??????????????? | | ???????????## #??????????????? | | ????????????# ########??????????????? | | ????????????# #?????????????????????? | | ????????????# #?????????????????????? | | ????????????# #?????????????????????? | | ????????????# ###???????????????????? | | ???????????## #???????????????????? | | ??????????## #?###???????????????? | | ??????????# ##?# ##?????????????? | | ??????????# ##?? #?????????????? | | ??????????# ##??? ##????????????? | | ??????????## #??? ?????????????? | | ???????????## #???# #??????##### #? | | ???????????## ##???# ##????# ?? | | ??????????## ##???# #???? ??? | | ??????????# ##?## ##?## #???? | | ??????????# ### ### ##??? | | ??????????## #??? | | ???????????# #??? | +----------------------------------------------------+ Best States ------------- Heat Dissipation 25 Energy Generation 10 Energy Capacity 250 Matter Stores 300 Matter Capacity 300 Sight Range 16 Terrain Scan Density 10 Armor Coverage 150 Evasion (%) 41 Recoil Reduction 2 Item Schematics ----------------- None Robot Schematics ------------------ None Fabricated ------------ Nothing Repaired ---------- Lgt. Treads | 32% | -10/Materials | Broken Alien Tech Used ----------------- None Achievements -------------- None Challenges ------------ None Game ------ Seed ExplosiveRecyclingCompressor Manual? 0 Play Time 00:14:39 Cumulative 493.8 hours Start 2025.07.12 @ 02:12:28 End 2025.07.12 @ 02:31:01 Sessions 3 Manual Loads 0 Difficulty Rogue Special Mode None Game No. 400 Rogue 392 Adventurer 0 Explorer 8 Win Type - Total 8 Types 6/0/2/0/0/0/0/0/0/0 Lore% 84 Gallery% 77 Achievement% 71 Wizard Run 0 Options --------- Layout 0 ASCII 0 Keyboard 1 Movement Vi Keybinds 0 Fullscreen 1 Font 18/SmallcapsGlow Map View 76x50 Zoom Use 0% Tactical HUD 1 Map Filters NONE Filters NONE Steam 1 RUN: 7dc1692c-cf9e-404a-9a27-01fd9b7d265b